bitfinex/quotes_BTCUSD_20250530
["timestamp","ask_amount","ask_price","bid_price","bid_amount"]
[1748599774123,0.71749919,105410.0,105400.0,0.00576583]
[1748599774335,0.73279919,105410.0,105400.0,0.00576583]
[1748599774750,0.39279919,105410.0,105400.0,0.00576583]
[1748599775164,0.39279919,105410.0,105400.0,0.01463136]
[1748599775374,0.39279919,105410.0,105400.0,0.01463163]
[1748599775575,0.39279919,105410.0,105400.0,0.00576583]
[1748599775784,0.5140813,105410.0,105400.0,0.00576583]
[1748599775997,0.6176413,105410.0,105400.0,0.00576583]
[1748599776210,0.52670004,105410.0,105400.0,0.00576583]
[1748599776838,0.41134004,105410.0,105400.0,0.00576583]
[1748599777091,0.41134004,105410.0,105400.0,0.01463232]
[1748599777092,0.30565183,105410.0,105400.0,0.01463232]
[1748599777352,0.30565183,105410.0,105400.0,0.00576583]
[1748599777547,0.30565183,105410.0,105400.0,0.02076583]
[1748599777954,0.30565183,105410.0,105400.0,0.40576583]
[1748599778185,0.30565183,105410.0,105400.0,0.50532583]
[1748599778392,0.30565183,105410.0,105400.0,0.10532583]
[1748599779060,0.30565183,105410.0,105400.0,0.44532583]
[1748599779270,0.30565183,105410.0,105400.0,0.00576583]
[1748599779700,0.38149919,105410.0,105400.0,0.00576583]
[1748599780347,0.39679919,105410.0,105400.0,0.00576583]
[1748599780557,0.42734004,105410.0,105400.0,0.00576583]
[1748599780996,0.51985126,105410.0,105400.0,0.00576583]
[1748599781446,0.73866004,105410.0,105400.0,0.00576583]
[1748599782293,0.86670304,105410.0,105400.0,0.00576583]
[1748599782716,0.45582304,105410.0,105400.0,0.00576583]
[1748599782925,0.86638304,105410.0,105400.0,0.00576583]
[1748599783357,0.87638304,105410.0,105400.0,0.00576583]
[1748599783566,0.96889426,105410.0,105400.0,0.00576583]
[1748599784036,0.96689426,105410.0,105400.0,0.00576583]
[1748599784243,0.87838304,105410.0,105400.0,0.00576583]
[1748599784909,0.87438304,105410.0,105400.0,0.00576583]
[1748599785116,0.87838304,105410.0,105400.0,0.00576583]
[1748599789801,0.38197568,105410.0,105400.0,0.00576583]
[1748599790041,0.33613483,105410.0,105400.0,0.00576583]
[1748599790246,0.40725183,105410.0,105400.0,0.00576583]
[1748599791084,0.30765183,105410.0,105400.0,0.00576583]
[1748599791300,0.40725183,105410.0,105400.0,0.00576583]
[1748599792378,0.30765183,105410.0,105400.0,0.02086583]
[1748599792586,0.30765183,105410.0,105400.0,0.00576583]
[1748599794109,0.38349919,105410.0,105400.0,0.00576583]
[1748599798612,0.38349919,105410.0,105400.0,0.02510372]
[1748599799462,0.38349919,105410.0,105400.0,0.03396495]
[1748599799674,0.38349919,105410.0,105400.0,0.03396496]
[1748599799881,0.48309919,105410.0,105400.0,0.03396526]
[1748599800097,0.48309919,105410.0,105400.0,0.02510372]
[1748599800529,0.48309919,105410.0,105400.0,0.00576583]
[1748599800530,0.52994004,105410.0,105400.0,0.00576583]
[1748599800739,0.54978341,105410.0,105400.0,0.00576583]
[1748599800948,0.57826841,105410.0,105400.0,0.00576583]
[1748599801158,0.57882243,105410.0,105400.0,0.00576583]
[1748599801829,0.20876762,105380.0,105370.0,0.0159349]
[1748599802041,0.40799553,105380.0,105370.0,0.0159349]
[1748599802255,0.40782833,105380.0,105370.0,0.0159349]
[1748599802733,0.43631833,105380.0,105370.0,0.02480433]
[1748599802961,0.43631833,105380.0,105370.0,0.0159349]
[1748599803204,0.43631833,105380.0,105370.0,0.0248047]
[1748599803439,0.45085918,105380.0,105370.0,0.0159349]
[1748599803674,0.81660595,105380.0,105370.0,0.02480473]
[1748599803917,1.23966801,105380.0,105370.0,0.02580473]
[1748599804383,1.21127065,105380.0,105370.0,0.02580473]
[1748599804617,1.23966754,105380.0,105370.0,0.02561491]
[1748599804817,1.33217876,105380.0,105370.0,0.02561491]
[1748599805035,1.34217876,105380.0,105370.0,0.02561491]
[1748599805250,1.24966754,105380.0,105370.0,0.02461491]
[1748599805451,1.24966754,105380.0,105370.0,0.02471628]
[1748599805652,1.22127018,105380.0,105370.0,0.02471628]
[1748599806102,1.21127018,105380.0,105370.0,0.02471628]
[1748599806761,1.21227018,105380.0,105370.0,0.02471628]
[1748599806995,1.19907018,105380.0,105370.0,0.02471628]
[1748599808428,1.21427018,105380.0,105370.0,0.02471628]
[1748599808649,1.28797551,105380.0,105370.0,0.02471628]
[1748599808878,1.28795208,105380.0,105370.0,0.02471628]
[1748599809329,1.28727208,105380.0,105370.0,0.02471628]
[1748599809738,1.23055493,105380.0,105370.0,0.02471628]
[1748599810380,1.24055493,105380.0,105370.0,0.02471628]
[1748599810804,1.63055493,105380.0,105370.0,0.02471628]
[1748599811215,2.33055493,105380.0,105370.0,0.02471628]
[1748599813117,1.63054238,105380.0,105370.0,0.02471628]
[1748599814452,1.7122136,105380.0,105370.0,0.02471628]
[1748599814652,1.61970238,105380.0,105370.0,0.02471628]
[1748599814857,1.71942238,105380.0,105370.0,0.02471628]
[1748599815868,2.41942238,105380.0,105370.0,0.02471628]
[1748599816318,1.09288238,105380.0,105370.0,0.02471628]
[1748599816569,1.863281,105380.0,105370.0,0.02471628]
[1748599816820,1.52078083,105380.0,105370.0,0.02471628]
[1748599817057,1.51172282,105380.0,105370.0,0.02471628]
[1748599817498,0.81172282,105380.0,105370.0,0.02471628]
[1748599817706,0.82626367,105380.0,105370.0,0.02471628]
[1748599821475,0.82626367,105380.0,105370.0,0.02195628]
[1748599823493,0.83626367,105380.0,105370.0,0.02195628]
[1748599824400,0.85662718,105380.0,105370.0,0.02195628]
[1748599826555,1.35532175,105380.0,105370.0,0.02195628]
[1748599827598,1.28346248,105380.0,105370.0,0.02195628]
[1748599828472,1.25644942,105380.0,105370.0,0.02195628]
[1748599829503,1.27244942,105380.0,105370.0,0.02195628]
[1748599831133,1.97244942,105380.0,105370.0,0.02195628]
[1748599832628,2.21788942,105380.0,105370.0,0.02195628]
[1748599832831,2.20188942,105380.0,105370.0,0.02195628]
[1748599833682,1.50188942,105380.0,105370.0,0.02195628]
[1748599833926,1.49283897,105380.0,105370.0,0.02195628]
[1748599834130,1.17330045,105380.0,105370.0,0.02195628]
[1748599834332,1.15816515,105380.0,105370.0,0.02195628]
[1748599836008,1.18665915,105380.0,105370.0,0.02195628]
[1748599836643,1.20179445,105380.0,105370.0,0.02195628]
[1748599837099,1.19042696,105380.0,105370.0,0.02195628]
[1748599837307,0.80103416,105380.0,105370.0,0.02195628]
[1748599837515,1.20131416,105380.0,105370.0,0.02195628]
[1748599837752,1.28726901,105380.0,105370.0,0.02195628]
[1748599837956,1.23341416,105380.0,105370.0,0.02195628]
[1748599838189,1.92204686,105380.0,105370.0,0.02195628]
[1748599838817,2.30204686,105380.0,105370.0,0.02195628]
[1748599839236,2.28691156,105380.0,105370.0,0.02195628]
[1748599839676,2.37942278,105380.0,105370.0,0.02195628]
[1748599839883,2.28691156,105380.0,105370.0,0.02195628]
[1748599842336,1.58691042,105380.0,105370.0,0.02195628]
[1748599845122,1.68663042,105380.0,105370.0,0.02195628]
[1748599845331,2.38663042,105380.0,105370.0,0.02195628]
[1748599846417,2.37753767,105380.0,105370.0,0.02195628]
[1748599846635,2.36968005,105380.0,105370.0,0.02195628]
[1748599847080,1.97648005,105380.0,105370.0,0.02195628]
[1748599847345,2.25146605,105380.0,105370.0,0.02195628]
[1748599849067,2.25146775,105380.0,105370.0,0.02195628]
[1748599850748,2.24237516,105380.0,105370.0,0.02195628]
[1748599850957,2.25146987,105380.0,105370.0,0.02195628]
[1748599851164,2.25146987,105380.0,105370.0,0.01034756]
[1748599851374,1.94798987,105380.0,105370.0,0.01034756]
[1748599851576,2.25146987,105380.0,105370.0,0.01034756]
[1748599851784,1.85118987,105380.0,105370.0,0.01034756]
[1748599851987,2.20146987,105380.0,105370.0,0.02564756]
[1748599852392,1.79118987,105380.0,105370.0,0.02564756]
[1748599852610,1.43664902,105380.0,105370.0,0.04224756]
[1748599852822,1.5296686,105380.0,105370.0,0.04224756]
[1748599853033,1.83627838,105380.0,105370.0,0.04224756]
[1748599853449,1.13627838,105380.0,105370.0,0.04224756]
[1748599854517,1.14764945,105380.0,105370.0,0.04224756]
[1748599854725,1.14764945,105380.0,105370.0,0.01034756]
[1748599854937,1.13627785,105380.0,105370.0,0.01034756]
[1748599855143,1.14764558,105380.0,105370.0,0.01034756]
[1748599856808,0.84420558,105380.0,105370.0,0.04284756]
[1748599857036,0.82966473,105380.0,105370.0,0.04284756]
[1748599857241,0.818297,105380.0,105370.0,0.04284756]
[1748599857463,0.311577,105380.0,105370.0,0.04284756]
[1748599857676,0.30248282,105380.0,105370.0,0.04284756]
[1748599858512,0.30048282,105380.0,105370.0,0.04284756]
[1748599858729,0.30148282,105380.0,105370.0,0.04284756]
[1748599860935,0.39828282,105380.0,105370.0,0.04284756]
[1748599863291,0.39728282,105380.0,105370.0,0.04284756]
[1748599863500,0.39728282,105380.0,105370.0,0.04384756]
[1748599864997,0.70060282,105380.0,105370.0,0.04384756]
[1748599866278,0.30048282,105380.0,105370.0,0.04384756]
[1748599866486,0.39692282,105380.0,105370.0,0.04384756]
[1748599868848,0.18978496,105400.0,105390.0,0.0311]
[1748599869077,0.19011342,105410.0,105400.0,0.3711]
[1748599869078,0.00048843,105410.0,105400.0,0.3711]
[1748599869314,0.02894709,105410.0,105400.0,0.3711]
[1748599869521,0.02894709,105410.0,105400.0,0.7711]
[1748599869522,0.04792043,105410.0,105400.0,0.7711]
[1748599869750,0.21868357,105410.0,105400.0,0.7711]
[1748599869978,0.00997501,105410.0,105400.0,0.96085332]
[1748599870234,0.02894736,105410.0,105400.0,0.78058766]
[1748599870452,0.02894736,105410.0,105400.0,0.98482855]
[1748599870665,0.02894736,105410.0,105400.0,0.7761]
[1748599870887,0.21868267,105410.0,105400.0,0.7711]
[1748599871093,0.21968267,105410.0,105400.0,0.7811]
[1748599871740,0.20071032,105410.0,105400.0,0.7811]
[1748599872153,0.21019663,105410.0,105400.0,0.7811]
[1748599873687,0.20071032,105410.0,105400.0,0.7811]
[1748599874133,0.20071032,105410.0,105400.0,0.70284424]
[1748599875215,0.20071032,105410.0,105400.0,0.39964424]
[1748599875455,0.20071032,105410.0,105400.0,0.70284424]
[1748599875878,0.20071032,105410.0,105400.0,0.05964424]
[1748599876319,0.20071032,105410.0,105400.0,0.40201584]
[1748599876536,0.20071032,105410.0,105400.0,0.39964424]
[1748599877209,0.20071032,105410.0,105400.0,0.05964424]
[1748599877411,0.20071032,105410.0,105400.0,0.06201584]
[1748599877847,0.20071032,105410.0,105400.0,0.05964424]
[1748599878914,0.20071032,105410.0,105400.0,0.05982967]
[1748599879840,0.20071032,105410.0,105400.0,0.06220127]
[1748599880259,0.20071032,105410.0,105400.0,0.05982967]
[1748599882397,0.20071032,105410.0,105400.0,0.07759634]
[1748599883466,0.20071032,105410.0,105400.0,0.07522467]
[1748599884094,0.29176427,105410.0,105400.0,0.04412467]
[1748599885644,0.29076427,105410.0,105400.0,0.03912467]
[1748599885858,0.29076427,105410.0,105400.0,0.04312467]
[1748599886065,0.29076427,105410.0,105400.0,0.03812467]
[1748599886495,0.29076427,105410.0,105400.0,0.04212467]
[1748599886946,0.29076427,105410.0,105400.0,0.02672967]
[1748599887160,0.32206427,105410.0,105400.0,0.02672967]
[1748599887803,0.62518427,105410.0,105400.0,0.02672967]
[1748599888444,0.62518427,105410.0,105400.0,0.00818543]
[1748599888694,0.62518427,105410.0,105400.0,0.00418543]
[1748599888908,0.62618427,105410.0,105400.0,0.00018543]
[1748599889320,0.62718427,105410.0,105400.0,0.00018543]
[1748599892819,0.64172512,105410.0,105400.0,0.00018543]
[1748599895200,1.12962512,105410.0,105400.0,0.00018543]
[1748599896077,1.53934512,105410.0,105400.0,0.00018543]
[1748599900132,1.63926512,105410.0,105400.0,0.00018543]
[1748599900357,1.53934512,105410.0,105400.0,0.00018543]
[1748599902437,1.87934512,105410.0,105400.0,0.00018543]
[1748599904455,1.88934512,105410.0,105400.0,0.00018543]
[1748599905648,1.40144512,105410.0,105400.0,0.00018543]
[1748599907589,1.06144512,105410.0,105400.0,0.00018543]
[1748599908039,1.76144512,105410.0,105400.0,0.00018543]
[1748599910340,1.75144512,105410.0,105400.0,0.00018543]
[1748599910561,1.05144512,105410.0,105400.0,0.00018543]
[1748599912495,1.06278719,105410.0,105400.0,0.00018543]
[1748599913729,1.05144512,105410.0,105400.0,0.00018543]
[1748599914395,1.40278719,105410.0,105400.0,0.00018543]
[1748599915365,1.41270719,105410.0,105400.0,0.00018543]
[1748599915570,1.10966719,105410.0,105400.0,0.00018543]
[1748599915761,1.41270719,105410.0,105400.0,0.00018543]
[1748599916849,1.41272003,105410.0,105400.0,0.00018543]
[1748599917254,1.50912003,105410.0,105400.0,0.00018543]
[1748599917487,1.49912003,105410.0,105400.0,0.00018543]
[1748599917720,0.22330847,105380.0,105370.0,0.01024619]
[1748599917963,0.42656242,105380.0,105370.0,0.01024619]
[1748599918192,0.72960242,105380.0,105370.0,0.01024619]
[1748599919543,0.73160242,105380.0,105370.0,0.01024619]
[1748599920375,0.74740242,105380.0,105370.0,0.01024619]
[1748599920586,0.75740242,105380.0,105370.0,0.01024619]
[1748599920999,1.24530242,105380.0,105370.0,0.01024619]
[1748599921646,0.83586242,105380.0,105370.0,0.01024619]
[1748599921847,1.23530242,105380.0,105370.0,0.01024619]
[1748599922055,1.24988804,105380.0,105370.0,0.01024619]
[1748599922477,1.2497785,105380.0,105370.0,0.01024619]
[1748599922964,0.80404769,105380.0,105370.0,0.01024619]
[1748599923211,0.80404769,105380.0,105370.0,0.04094619]
[1748599923212,0.39800684,105380.0,105370.0,0.04094619]
[1748599924114,0.30160684,105380.0,105370.0,0.02544619]
[1748599924330,0.39800684,105380.0,105370.0,0.02544619]
[1748599926275,0.39800684,105380.0,105370.0,0.01024619]
[1748599927107,0.39800684,105380.0,105370.0,0.01037469]
[1748599927752,0.39800684,105380.0,105370.0,0.00150486]
[1748599934412,0.73800684,105380.0,105370.0,0.00150486]
[1748599934857,0.30160684,105380.0,105370.0,0.03420486]
[1748599935069,0.39788684,105380.0,105370.0,0.03420486]
[1748599935291,0.30160684,105380.0,105370.0,0.03420486]
[1748599939858,0.30160684,105380.0,105370.0,0.00150486]
[1748599942040,0.30160684,105380.0,105370.0,0.03220486]
[1748599942041,0.39784684,105380.0,105370.0,0.03220486]
[1748599946337,0.39784684,105380.0,105370.0,0.03290486]
[1748599946549,0.39784684,105380.0,105370.0,0.01710486]
[1748599947627,0.39784684,105380.0,105370.0,0.03320486]
[1748599954123,0.39784684,105380.0,105370.0,0.00150486]
[1748599956463,0.39784684,105380.0,105370.0,0.03300486]
[1748599963514,0.002,105380.0,105370.0,0.31386615]
[1748599963723,0.20919699,105410.0,105400.0,0.3565]
[1748599963939,0.20919699,105410.0,105400.0,0.38412508]
[1748599964382,0.30025094,105410.0,105400.0,0.38412508]
[1748599964601,0.30025094,105410.0,105400.0,0.0328]
[1748599965278,0.30025094,105410.0,105400.0,0.0338]
[1748599966334,0.30025094,105410.0,105400.0,0.05282623]
[1748599966767,0.30225094,105410.0,105400.0,0.05282623]
[1748599967190,0.30025094,105410.0,105400.0,0.05282623]
[1748599967753,0.30025094,105410.0,105400.0,0.05382623]
[1748599968533,0.30025094,105410.0,105400.0,0.45382623]
[1748599968775,0.30025094,105410.0,105400.0,0.79393377]
[1748599970280,0.30025094,105410.0,105400.0,0.76113377]
[1748599971548,0.30025094,105410.0,105400.0,0.77743377]
[1748599972811,0.30025094,105410.0,105400.0,0.79214225]
[1748599973024,0.30025094,105410.0,105400.0,0.39214225]
[1748599973233,0.30025094,105410.0,105400.0,0.37584225]
[1748599973669,0.30025094,105410.0,105400.0,0.77584225]
[1748599974099,0.30025094,105410.0,105400.0,0.37584225]
[1748599975655,0.30025094,105410.0,105400.0,0.39134225]
[1748599975867,0.30025094,105410.0,105400.0,0.40794225]
[1748599976075,0.30025094,105410.0,105400.0,0.37584225]
[1748599978605,0.30025094,105410.0,105400.0,0.40864225]
[1748599979932,0.30025094,105410.0,105400.0,0.39214225]
[1748599980177,0.30025094,105410.0,105400.0,0.40864225]
[1748599980901,0.30025094,105410.0,105400.0,0.37584225]
[1748599983880,0.30025094,105410.0,105400.0,0.03584225]
[1748599984105,0.4082983,105410.0,105400.0,0.02113377]
[1748599984319,0.4082983,105410.0,105400.0,0.00210754]
[1748599985181,0.71503094,105410.0,105400.0,0.01555918]
[1748599985391,0.71503094,105410.0,105400.0,0.00210754]
[1748599985827,0.69849094,105410.0,105400.0,0.00210754]
[1748599987126,0.72919094,105410.0,105400.0,0.00210754]
[1748599989299,0.74373179,105410.0,105400.0,0.00210754]
[1748599993666,0.42699094,105410.0,105400.0,0.00210754]
[1748599993880,0.71365094,105410.0,105400.0,0.00210754]
[1748599995840,0.72915094,105410.0,105400.0,0.00210754]
[1748599997113,1.13891094,105410.0,105400.0,0.00210754]
[1748600000225,1.64135179,105410.0,105400.0,0.00210754]
[1748600000441,1.98135179,105410.0,105400.0,0.00210754]
[1748600000669,1.99135179,105410.0,105400.0,0.00210754]
[1748600001092,1.99135179,105410.0,105400.0,0.00110754]
[1748600002245,1.99135179,105410.0,105400.0,0.00010754]
[1748600003747,2.69135179,105410.0,105400.0,0.00010754]
[1748600004377,2.20345179,105410.0,105400.0,0.00010754]
[1748600005459,2.30731381,105410.0,105400.0,0.00010754]
[1748600005677,2.26480259,105410.0,105400.0,0.00010754]
[1748600005963,2.37480259,105410.0,105400.0,0.00010754]
[1748600006216,2.37479488,105410.0,105400.0,0.00010754]
[1748600006903,2.36479488,105410.0,105400.0,0.00010754]
[1748600007743,3.06479488,105410.0,105400.0,0.00010754]
[1748600007990,2.36479488,105410.0,105400.0,0.00010754]
[1748600008420,2.36479488,105410.0,105370.0,0.00137636]
[1748600008421,0.25510847,105380.0,105370.0,0.00137636]
[1748600008636,1.23190242,105380.0,105370.0,0.00137636]
[1748600009058,1.24836242,105380.0,105370.0,0.00137636]
[1748600009513,1.24822658,105380.0,105370.0,0.00137636]
[1748600009731,1.26181021,105380.0,105370.0,0.00137636]
[1748600010157,1.26381021,105380.0,105370.0,0.00137636]
[1748600010837,1.26581021,105380.0,105370.0,0.00137636]
[1748600012779,1.26565136,105380.0,105370.0,0.00137636]
[1748600012991,1.26545769,105380.0,105370.0,0.00137636]
[1748600014087,1.26545769,105380.0,105370.0,0.00154809]
[1748600014913,1.27545769,105380.0,105370.0,0.00154809]
[1748600019371,0.78755769,105380.0,105370.0,0.00154809]
[1748600022251,1.12755769,105380.0,105370.0,0.00154809]
[1748600022486,1.53747769,105380.0,105370.0,0.00154809]
[1748600022697,1.77990891,105380.0,105370.0,0.00154809]
[1748600022909,1.69872607,105380.0,105370.0,0.00154809]
[1748600024494,2.39872607,105380.0,105370.0,0.00154809]
[1748600025860,2.39872607,105380.0,105350.0,6e-05]
[1748600026073,0.31440205,105360.0,105350.0,6e-05]
[1748600026292,0.44178205,105360.0,105350.0,6e-05]
[1748600027145,1.14178205,105360.0,105350.0,6e-05]
[1748600027354,1.14178205,105360.0,105350.0,0.00120673]
[1748600027791,1.14178205,105360.0,105350.0,0.00220673]
[1748600030064,1.58429327,105360.0,105350.0,0.00220673]
[1748600030286,1.49159286,105360.0,105350.0,0.00220673]
[1748600031360,1.49143821,105360.0,105350.0,0.00220673]
[1748600031805,1.38575821,105360.0,105350.0,0.00220673]
[1748600032065,1.10973821,105360.0,105350.0,0.00220673]
[1748600032308,1.10973821,105360.0,105350.0,0.03360673]
[1748600032309,1.39703736,105360.0,105350.0,0.03360673]
[1748600032513,1.41157821,105360.0,105350.0,0.00220673]
[1748600032961,1.44287821,105360.0,105350.0,0.00220673]
[1748600033579,1.44275218,105360.0,105350.0,0.00220673]
[1748600036738,1.42675218,105360.0,105350.0,0.00220673]
[1748600036948,1.01393218,105360.0,105350.0,0.00220673]
[1748600037151,1.41145218,105360.0,105350.0,0.00220673]
[1748600037566,1.01393218,105360.0,105350.0,0.00220673]
[1748600037774,1.41129367,105360.0,105350.0,0.00220673]
[1748600038183,1.01381367,105360.0,105350.0,0.00220673]
[1748600038364,1.41129367,105360.0,105350.0,0.00220673]
[1748600039867,1.41129367,105360.0,105350.0,0.03360673]
[1748600040071,0.71129367,105360.0,105350.0,0.03360673]
[1748600040497,0.71129367,105360.0,105350.0,0.01830673]
[1748600040713,0.71129367,105360.0,105350.0,0.00220673]
[1748600040923,0.71112412,105360.0,105350.0,0.00220673]
[1748600041135,0.31351383,105360.0,105350.0,0.00220673]
[1748600041345,0.72729383,105360.0,105350.0,0.01109242]
[1748600041558,0.72729383,105360.0,105350.0,0.00220673]
[1748600042622,0.74309383,105360.0,105350.0,0.00220673]
[1748600043533,1.42729383,105360.0,105350.0,0.00220673]
[1748600043742,1.75099383,105360.0,105350.0,0.00220673]
[1748600043951,1.05099383,105360.0,105350.0,0.00220673]
[1748600044178,1.05095383,105360.0,105350.0,0.00220673]
[1748600044390,1.05095383,105360.0,105350.0,0.00233953]
[1748600044843,1.05095383,105360.0,105350.0,0.01763953]
[1748600045056,1.05095383,105360.0,105350.0,0.03293953]
[1748600045057,0.65351383,105360.0,105350.0,0.03293953]
[1748600045262,1.05095383,105360.0,105350.0,0.03293953]
[1748600045478,1.05095383,105360.0,105350.0,0.01763953]
[1748600045686,1.05095383,105360.0,105350.0,0.02652419]
[1748600046749,1.05095383,105360.0,105350.0,0.0354088]
[1748600046961,0.29897298,105360.0,105350.0,0.0505088]
[1748600047196,0.29897298,105360.0,105350.0,0.04162419]
[1748600047659,0.39449298,105360.0,105350.0,0.04162419]
[1748600056486,0.29897298,105360.0,105350.0,0.04162419]
[1748600056705,0.39449298,105360.0,105350.0,0.04162419]
[1748600058002,0.29897298,105360.0,105350.0,0.04162419]
[1748600058218,0.39449298,105360.0,105350.0,0.04162419]
[1748600062068,0.39449298,105360.0,105350.0,0.39068276]
[1748600063136,0.39449298,105360.0,105350.0,0.39068238]
[1748600064404,0.39449298,105360.0,105350.0,0.40347524]
[1748600064849,0.39449298,105360.0,105350.0,0.06347524]
[1748600065551,0.29897298,105360.0,105350.0,0.06347524]
[1748600065725,0.39445298,105360.0,105350.0,0.06347524]
[1748600067285,0.39445298,105360.0,105350.0,0.06347639]
[1748600067487,0.29897298,105360.0,105350.0,0.06347639]
[1748600067689,0.39445298,105360.0,105350.0,0.06347639]
[1748600068602,0.39445298,105360.0,105350.0,0.04837639]
[1748600069422,0.39445298,105360.0,105350.0,0.02028353]
[1748600069423,0.47030034,105360.0,105350.0,0.02028353]
[1748600069788,0.50300034,105360.0,105350.0,0.02915483]
[1748600070037,0.41095298,105360.0,105350.0,0.02916345]
[1748600070244,0.41095298,105360.0,105350.0,0.02029215]
[1748600070456,0.41095298,105360.0,105350.0,0.02916403]
[1748600070838,0.41095298,105360.0,105350.0,0.02915932]
[1748600071271,0.41095298,105360.0,105350.0,0.02029215]
[1748600071403,0.41095298,105360.0,105350.0,0.02915932]
[1748600071747,0.41095298,105360.0,105350.0,0.02915946]
[1748600071969,0.52095298,105360.0,105350.0,0.02915946]
[1748600072126,0.52095298,105360.0,105350.0,0.02029215]
[1748600072334,0.53705298,105360.0,105350.0,0.02915982]
[1748600072545,0.53705298,105360.0,105350.0,0.02915659]
[1748600072696,0.53705298,105360.0,105350.0,0.02029215]
[1748600073524,0.53705298,105360.0,105350.0,0.02915656]
[1748600073940,0.53705298,105360.0,105350.0,0.0200886]
[1748600075185,0.53705298,105360.0,105350.0,0.02916429]
[1748600075364,0.53705298,105360.0,105350.0,0.0200886]
[1748600078505,0.55159383,105360.0,105350.0,0.0200886]
[1748600078875,0.85295383,105360.0,105350.0,0.0200886]
[1748600079290,0.85295383,105360.0,105350.0,0.0173686]
[1748600079924,0.83841298,105360.0,105350.0,0.0173686]
[1748600080129,0.42547298,105360.0,105350.0,0.0173686]
[1748600080332,0.82231298,105360.0,105350.0,0.0173686]
[1748600080504,0.82231298,105360.0,105350.0,0.01748317]
[1748600081720,0.83785298,105360.0,105350.0,0.01748317]
[1748600082780,0.85239383,105360.0,105350.0,0.01748317]
[1748600088902,0.80585298,105360.0,105350.0,0.01748317]
[1748600089196,0.51997298,105360.0,105350.0,0.01748317]
[1748600089400,0.82141298,105360.0,105350.0,0.01748317]
[1748600090694,0.83681298,105360.0,105350.0,0.01748317]
[1748600091327,0.85135383,105360.0,105350.0,0.01748317]
[1748600102473,0.85135383,105360.0,105350.0,0.01686628]
[1748600105769,1.55135383,105360.0,105350.0,0.01686628]
[1748600106596,2.38925383,105360.0,105350.0,0.01686628]
[1748600107415,0.20886673,105330.0,105320.0,0.0153]
[1748600107621,0.20886673,105330.0,105320.0,0.02439239]
[1748600107622,0.69668068,105330.0,105320.0,0.02439239]
[1748600107752,0.69650896,105330.0,105320.0,0.02439239]
[1748600108396,0.69650896,105330.0,105320.0,0.024393]
[1748600108611,0.69650896,105330.0,105320.0,0.009093]
[1748600109179,0.70943173,105330.0,105320.0,0.009093]
[1748600109656,0.70943173,105330.0,105320.0,0.011093]
[1748600110414,0.70943173,105330.0,105320.0,0.026693]
[1748600110415,0.69650896,105330.0,105320.0,0.026693]
[1748600110616,0.69650896,105330.0,105320.0,0.042593]
[1748600110975,0.69636677,105330.0,105320.0,0.011093]
[1748600111789,0.69636677,105330.0,105320.0,0.002]
[1748600113156,0.81845498,105330.0,105320.0,0.004]
[1748600113545,0.83129323,105330.0,105320.0,0.004]
[1748600113753,1.17129323,105330.0,105320.0,0.004]
[1748600113978,1.09544587,105330.0,105320.0,0.002]
[1748600114214,0.34276206,105330.0,105320.0,0.002]
[1748600114419,1.12178381,105330.0,105320.0,0.002]
[1748600114628,1.10724296,105330.0,105320.0,0.0338]
[1748600114832,1.10724296,105330.0,105320.0,0.0318]
[1748600115285,1.10824296,105330.0,105320.0,0.0318]
[1748600115507,0.18991375,105320.0,105310.0,0.0312]
[1748600115701,0.2809677,105320.0,105310.0,0.04027873]
[1748600116698,0.28086466,105320.0,105310.0,0.04142549]
[1748600117276,0.28074259,105320.0,105310.0,0.04142549]
[1748600117483,0.37606259,105320.0,105310.0,0.04242549]
[1748600121632,0.37606259,105320.0,105310.0,0.04262511]
[1748600122046,0.37606259,105320.0,105310.0,0.04262392]
[1748600123251,0.28074259,105320.0,105310.0,0.04262392]
[1748600123453,0.37606259,105320.0,105310.0,0.04262392]
[1748600124097,0.37606259,105320.0,105310.0,0.05397085]
[1748600125335,0.37606259,105320.0,105310.0,0.39397085]
[1748600127807,0.28074259,105320.0,105310.0,0.39397085]
[1748600127999,0.37606259,105320.0,105310.0,0.39397085]
[1748600129228,0.37606259,105320.0,105310.0,0.39397773]
[1748600132375,0.37606259,105320.0,105310.0,0.37354638]
[1748600133219,0.18968864,105320.0,105310.0,0.37354638]
[1748600133468,0.18987942,105330.0,105320.0,0.0321]
[1748600133611,0.00949316,105330.0,105320.0,0.59349904]
[1748600133980,0.19937063,105340.0,105330.0,0.3558]
[1748600134193,0.19937063,105340.0,105330.0,0.43644171]
[1748600134360,0.19937063,105340.0,105330.0,0.45194171]
[1748600135607,0.19937063,105340.0,105330.0,0.46426504]
[1748600135771,0.19937063,105340.0,105330.0,0.04362333]
[1748600135972,0.29042458,105340.0,105330.0,0.0323]
[1748600136170,0.46155194,105340.0,105330.0,0.0323]
[1748600137043,0.46155194,105340.0,105330.0,0.0165]
[1748600137420,0.57155194,105340.0,105330.0,0.001]
[1748600138566,0.58765194,105340.0,105330.0,0.001]
[1748600139399,0.60375194,105340.0,105330.0,0.001]
[1748600139951,0.60375194,105340.0,105330.0,0.002]
[1748600141146,0.52790458,105340.0,105330.0,0.002]
[1748600141346,0.82918458,105340.0,105330.0,0.002]
[1748600142059,0.81308458,105340.0,105330.0,0.002]
[1748600142297,0.79698458,105340.0,105330.0,0.002]
[1748600145889,0.40042458,105340.0,105330.0,0.002]
[1748600146038,0.79690458,105340.0,105330.0,0.002]
[1748600146411,0.79690458,105340.0,105330.0,0.0343]
[1748600146735,0.49566458,105340.0,105330.0,0.0343]
[1748600147339,0.79690458,105340.0,105330.0,0.0179]
[1748600147536,0.40042458,105340.0,105330.0,0.0179]
[1748600147788,0.49566458,105340.0,105330.0,0.0329]
[1748600148167,0.38566458,105340.0,105330.0,0.0329]
[1748600148569,0.38566458,105340.0,105330.0,0.03304245]
[1748600152699,0.38566458,105340.0,105330.0,0.04567441]
[1748600156259,0.38566458,105340.0,105330.0,0.38567441]
[1748600159140,0.38566458,105340.0,105330.0,0.04567441]
[1748600159699,0.29042458,105340.0,105330.0,0.38567441]
[1748600159907,0.29461063,105340.0,105330.0,0.38567441]
[1748600162207,0.29461063,105340.0,105330.0,0.37304245]
[1748600162795,0.29461063,105340.0,105330.0,0.01804245]
[1748600162961,0.29461063,105340.0,105330.0,0.03374245]
[1748600163160,0.29461063,105340.0,105330.0,0.37374245]
[1748600164240,0.19937063,105340.0,105330.0,0.37374245]
[1748600164444,0.19937063,105340.0,105330.0,0.38509096]
[1748600165709,0.27864092,105380.0,105360.0,0.20551184]
[1748600165710,0.18986923,105380.0,105360.0,0.20551184]
[1748600165981,0.01897865,105380.0,105370.0,0.37337226]
[1748600166188,0.20816035,105380.0,105370.0,0.371]
[1748600166358,0.20816035,105380.0,105370.0,0.38611953]
[1748600166559,0.20816035,105380.0,105370.0,0.39518746]
[1748600166870,0.20864857,105380.0,105370.0,0.39138192]
[1748600167373,0.20864857,105380.0,105370.0,0.79138192]
[1748600168260,0.31570252,105380.0,105370.0,0.00906793]
[1748600168466,0.19929752,105370.0,105360.0,0.01933203]
[1748600168690,0.19929752,105370.0,105360.0,0.74904212]